Cogmind - Beta 13 @@@ ROGUE MODE // 2024.07.11 @ 15:59:05 Player: Sionnis Result: Destroyed by EX-DEC with AWS/EX-DEC Performance ------------- Evolutions (0) 0 Regions Visited (3) 600 Robots Destroyed (28) 140 Value Destroyed (609) 609 Prototype IDs (23) 460 Alien Tech Used (0) 0 Bonus (99) 99 TOTAL SCORE: 1908 Bonus ------- High Alert Combat Kills 8 Aligned with FarCom 300 Friendly Fire -209 Cogmind --------- Core Integrity 0/250 Matter 284/300 Energy 300/300 System Corruption 1% Temperature Cool (0) Movement Treading (320) Ox2 Location -10/Exiles Parts ------- > --- POWER (1) -------- (None) > --- PROPULSION (2) --- Light Treads > --- UTILITY (2) ------ High-capacity Storage Unit Large Battery > --- WEAPON (2) ------- Medium Laser Particle Gun > --- INVENTORY (20) --- Light Treads Compact Wheel High-capacity Storage Unit Medium Matter Pod (100) Medium Matter Pod (100) Signal Interpreter Transport Network Coupler ECM Suite Particle Gun Grenade Launcher Datajack Peak State ------------ > --- POWER ------------ (None) > --- PROPULSION ------- Light Treads Light Treads > --- UTILITY ---------- High-capacity Storage Unit Chronowheel > --- WEAPON ----------- Particle Gun Assault Rifle > --- INVENTORY -------- Light Treads Light Treads Light Treads Light Treads Light Treads Compact Wheel High-capacity Storage Unit Large Battery High-capacity Matter Pod Signal Interpreter Transport Network Coupler ECM Suite Medium Laser Particle Gun Grenade Launcher Datajack [Rating: 20] Favorites ----------- Power Ion Engine Engine Ion Engine Power Core Light Nuclear Core Propulsion Light Treads Treads Light Treads Utility High-capacity Storage Unit Device Sensor Array Storage High-capacity Storage Unit Weapon Assault Rifle Energy Gun Particle Gun Ballistic Gun Assault Rifle Launcher Grenade Launcher Build | -11 -10 -10 -10 ------- Run | Yrd Mat Min Exi Slots Evolved . | . . . . Power . | . . . . Propulsion . | . . . . Utility . | . . . . Weapon . | . . . . Parts Attached 35 | 7 15 2 11 Power 4 | 2 2 . . Engine 3 | 2 1 . . Core 1 | . 1 . . Reactor . | . . . . Propulsion 14 | 2 6 . 6 Treads 14 | 2 6 . 6 Leg . | . . . . Wheel . | . . . . Hover . | . . . . Flight . | . . . . Utility 6 | 1 3 . 2 Device 2 | . 1 . 1 Storage 4 | 1 2 . 1 Processor . | . . . . Hackware . | . . . . Protection . | . . . . Artifact . | . . . . Weapon 11 | 2 4 2 3 Energy Gun 7 | 1 2 2 2 Energy Cannon . | . . . . Ballistic Gun 2 | 1 1 . . Ballistic Cannon . | . . . . Launcher 2 | . 1 . 1 Special Weapon . | . . . . Impact Weapon . | . . . . Slashing Weapon . | . . . . Piercing Weapon . | . . . . Special Melee Weapon . | . . . . Unidentified Prototypes . | . . . . Parts Lost 8 | . . 2 6 Power 1 | . . 1 . Propulsion 5 | . . . 5 Utility . | . . . . Weapon 2 | . . 1 1 Highest Loss Streak 2 | . . 1 2 To Critical Strikes . | . . . . Average Slot Usage (%) 88 | . 93 93 81 Engine 4 | . 7 7 . Core 2 | . 5 . . Treads 27 | . 26 28 27 Device 6 | . 8 14 1 Storage 18 | . 15 14 23 Energy Gun 14 | . 13 14 16 Ballistic Gun 12 | . 13 14 10 Naked Turns . | . . . . Heaviest Build 51 | 14 50 51 48 Greatest Support 40 | 40 40 40 40 Greatest Overweight (x) 3 | 3 2 1 2 Average Overweight (x) . | . . 1 1 Largest Inventory Capacity 20 | 8 20 20 20 Average Capacity 17 | 7 13 20 20 Most Carried 20 | 4 15 16 20 Average Carried 13 | 2 8 15 16 Final Capacity 20 | 8 20 20 20 Final Carried 16 | 3 15 16 11 Class Distribution -------------------- 100% | Mutant Dominant Class ---------------- Mutant | -10/Materials Mutant | -10/Mines Mutant | -10/Exiles Resources | -11 -10 -10 -10 ----------- Run | Yrd Mat Min Exi Matter Collected 1116 | 226 568 67 255 Remotely . | . . . . Salvage Created 921 | . 701 195 25 Parts 62 | . 47 9 6 Haulers Intercepted 2 | . 2 . . Recyclers Shooed 2 | . 2 . . Parts Field Recycled . | . . . . Retrieved Matter . | . . . . Parts Self-Destructed . | . . . . Prevented . | . . . . Kills | -11 -10 -10 -10 ------- Run | Yrd Mat Min Exi Combat Hostiles Destroyed 18 | . 14 4 . Guns 14 | . 10 4 . AOE 4 | . 4 . . Classes Destroyed 8 | . 7 . 1 Worker 1 | . 1 . . Hauler 2 | . 2 . . Recycler 1 | . 1 . . Operator 2 | . 2 . . Turret 1 | . . . 1 Watcher 3 | . 3 . . Swarmer 6 | . 6 . . Grunt 12 | . 8 4 . Best Kill Streak 7 | . 7 2 1 Combat Bots Only 6 | . 6 2 . Max Kills in Single Turn 2 | . 2 1 1 Gunslinging 1 | . 1 . . Exploded 2 | . 2 . . Melee . | . . . . Uniques/NPCs Destroyed 2 | . . . 2 8R-AWN (-10/Exiles) EX-BIN (-10/Exiles) Combat | -11 -10 -10 -10 -------- Run | Yrd Mat Min Exi Hostile Shots Fired 122 | . 30 28 64 Missed 29 | . 10 4 15 Damage Taken 1751 | . 261 349 1141 Core 254 | . 6 47 201 Absorbed by Shields . | . . . . Regen/Repaired (Parts) 129 | . 129 . . Core Remaining (%) 100 | 100 . . . Volleys Fired 112 | . 40 19 53 Largest 2 | . 2 2 2 Hottest 115 | . 70 85 115 Shots Fired 187 | . 79 38 70 Gun 171 | . 77 38 56 Cannon . | . . . . Launcher 16 | . 2 . 14 Special . | . . . . Kinetic 59 | . 38 19 2 Thermal 66 | . . 12 54 Explosive 16 | . 2 . 14 Electromagnetic 46 | . 39 7 . Robot Hit Streak 13 | . 12 13 9 Robot Miss Streak 3 | . 3 2 2 Penetration Max . | . . . . Secondary Targets 2 | . 1 1 . Max Gunslinging Chain 1 | . 1 1 . Shots Hit Robots 126 | . 52 30 44 Core Hits 61 | . 31 9 21 Critical Kills . | . . . . Critical Parts Destroyed . | . . . . Critical Strikes 3 | . . 1 2 Burn 3 | . . 1 2 Melee Attacks . | . . . . Impact . | . . . . Slashing . | . . . . Piercing . | . . . . Sneak Attacks . | . . . . Combat Hostiles . | . . . . Follow-up Attacks . | . . . . Damage Inflicted 2399 | . 1082 405 912 Guns 1753 | . 772 405 576 Cannons . | . . . . Explosions 646 | . 310 . 336 Melee . | . . . . Ramming . | . . . . Kinetic 474 | . 303 171 . Thermal 802 | . 60 166 576 Explosive 586 | . 250 . 336 Electromagnetic 537 | . 469 68 . Impact . | . . . . Slashing . | . . . . Piercing . | . . . . Highest Corruption 1 | . . . 1 Average Corruption 1 | . . . 1 Corruption Purged . | . . . . Corruption Blocked . | . . . . Overload Shots . | . . . . Overflow Damage . | . . . . Projectiles . | . . . . Explosions . | . . . . Melee . | . . . . Knockbacks . | . . . . Impact . | . . . . Kinetic . | . . . . Secondary . | . . . . Self-Inflicted Damage 90 | . 60 . 30 Shots 3 | . 2 . 1 Rammed . | . . . . Targets Rammed . | . . . . Kicked . | . . . . Crushed . | . . . . Highest Temperature 234 | . 7 201 234 Average Temperature 71 | . 2 77 78 Received Heat Transfer 332 | . 75 237 20 Siege Activations . | . . . . Robots Corrupted . | . . . . Combat Hostiles . | . . . . Parts Fried 3 | . 3 . . Impact Corruptions . | . . . . Robots Melted . | . . . . Combat Hostiles . | . . . . Parts Melted 4 | . . 2 2 Heat Transferred 2124 | . 100 481 1543 Parts Sabotaged . | . . . . Parts Stolen . | . . . . Parts Stripped . | . . . . Power Chain Reactions 2 | . 2 . . Alert | -11 -10 -10 -10 ------- Run | Yrd Mat Min Exi Peak Influence 403 | . 403 92 . Initial . | . . . . Average 55 | . 77 24 . Maximum Alert Level 2 | . 2 . . Low Security (%) 89 | 100 82 100 . Level 1 8 | . 14 . . Level 2 1 | . 3 . . Level 3 . | . . . . Level 4 . | . . . . Level 5 . | . . . . High Security . | . . . . Max Security . | . . . . Squads Dispatched 5 | . 5 . . Investigation 3 | . 3 . . Extermination . | . . . . Reinforcement 2 | . 2 . . Assault . | . . . . Garrison . | . . . . Intercept . | . . . . Searches Triggered . | . . . . Construction Impeded . | . . . . Haulers Reinforced . | . . . . Active Scanning Responses . | . . . . Cargo Convoy Interrupts . | . . . . Stealth | -11 -10 -10 -10 --------- Run | Yrd Mat Min Exi Distress Signals 2 | . 2 . . Communications Jammed . | . . . . Distress Signals . | . . . . Times Spotted 80 | . 21 4 55 Peak Tracking Total 10 | . 8 2 10 Tactical Retreats 10 | . . . 10 Traps | -11 -10 -10 -10 ------- Run | Yrd Mat Min Exi Traps Triggered 5 | . 5 . . Indirectly . | . . . . Trap Hack Attempts . | . . . . Triggered . | . . . . Disarmed . | . . . . Reprogrammed . | . . . . Reused . | . . . . Traps Extracted . | . . . . Installed . | . . . . Triggered . | . . . . Machines | -11 -10 -10 -10 ---------- Run | Yrd Mat Min Exi Machines Disabled 5 | . 1 . 4 Max in Single Turn 1 | . 1 . 1 Machines Repaired . | . . . . Machines Dismantled . | . . . . Machines Sabotaged . | . . . . Overloaded Fab Kills . | . . . . Hacking | -11 -10 -10 -10 --------- Run | Yrd Mat Min Exi Machines Accessed 12 | . 10 1 1 Terminals 8 | . 7 1 . Fabricators . | . . . . Repair Stations 1 | . 1 . . Recycling Units 2 | . 2 . . Scanalyzers . | . . . . Garrison Access . | . . . . Total Hacks 33 | . 31 1 1 Successful 20 | . 18 1 1 Failed 12 | . 12 . . Catastrophic . | . . . . Database Lockouts 1 | . 1 . . Manual 14 | . 12 1 1 Terminals 22 | . 21 1 . Fabricators . | . . . . Repair Stations 6 | . 6 . . Recycling Units 4 | . 4 . . Scanalyzers . | . . . . Garrison Access . | . . . . Terminal Hacks 10 | . 8 1 1 Part Schematic 1 | . . 1 . Robot Analysis 2 | . 2 . . Terminal Index 1 | . 1 . . Alert Level 2 | . 2 . . Unreport Threat 2 | . 2 . . Hauler Manifests 1 | . 1 . . Derelict Proto ID Bank 1 | . . . 1 Fabricator Hacks . | . . . . Repair Station Hacks 6 | . 6 . . Scan Component 3 | . 3 . . Repair 3 | . 3 . . Recycling Unit Hacks 1 | . 1 . . Retrieve Components 1 | . 1 . . Scanalyzer . | . . . . Garrison Access Hacks . | . . . . Unauthorized Hacks 3 | . 3 . . Terminals 3 | . 3 . . Botnet 2 | . 2 . . Operators 1 | . 1 . . Fabricators . | . . . . Repair Stations . | . . . . Recycling Units . | . . . . Scanalyzers . | . . . . Garrison Access . | . . . . Data Cores Recovered . | . . . . Used . | . . . . Hacking Detections 8 | . 8 . . Full Trace Events . | . . . . Feedback Events . | . . . . Feedback Blocked . | . . . . Robot Schematics Acquired . | . . . . Robots Built . | . . . . Authchips . | . . . . Time . | . . . . Total Robot Build Rating . | . . . . Part Schematics Acquired 1 | . . 1 . Parts Built . | . . . . Authchips . | . . . . Time . | . . . . Total Part Build Rating . | . . . . Parts Repaired 3 | . 3 . . Time 78 | . 78 . . Parts Recycled . | . . . . Recycled Matter . | . . . . Retrieved Matter . | . . . . Retrieved Components 3 | . 3 . . Parts Scanalyzed . | . . . . Part Schematics Acquired . | . . . . Parts Damaged . | . . . . Bothacking | -11 -10 -10 -10 ------------ Run | Yrd Mat Min Exi Used RIF Installer . | . . . . Robots Hacked . | . . . . Non-combat . | . . . . Combat . | . . . . Robot Hacks Applied . | . . . . Relay Couplers Released . | . . . . Fabnet Peak Effective % . | . . . . Robots Rewired . | . . . . Allies Hacked . | . . . . Hacks Repelled . | . . . . Allies | -11 -10 -10 -10 -------- Run | Yrd Mat Min Exi Total Allies . | . . . . Largest Group . | . . . . Highest-Rated Group . | . . . . Highest-Rated Ally . | . . . . Total Orders . | . . . . Ally Attacks 19 | . . . 19 Total Damage 1002 | . . . 1002 Kills 4 | . . . 4 Allies Corrupted . | . . . . Allies Melted . | . . . . Turrets Deployed 3 | . . . 3 Intel | -11 -10 -10 -10 ------- Run | Yrd Mat Min Exi Robot Analysis Total 2 | . 2 . . Derelict Logs Recovered 2 | . . 2 . Drone Launches . | . . . . Drone Recoveries . | . . . . Exploration | -11 -10 -10 -10 ------------- Run | Yrd Mat Min Exi Turns Passed 4974 | 87 1781 1070 2036 Spaces Moved 1949 | 48 721 418 762 Core 14 | 14 . . . Treads 1935 | 34 721 418 762 Legs . | . . . . Wheels . | . . . . Hover . | . . . . Flight . | . . . . Fastest Speed 50 | 50 160 240 240 Average Speed 220 | 153 191 240 240 Slowest Speed 320 | 200 320 240 320 Overloaded Moves . | . . . . Propulsion Burnouts . | . . . . Robots Hopped . | . . . . Cave-ins Triggered . | . . . . Exploration Rate (%) 73 | 5 100 99 90 Regions Visited 3 Branch Regions 2 Pre-discovered Areas . | . . . . Known Exits Taken . | . . . . Unknown Exits Taken 3 | 1 1 1 . Scrap Searched 1 | . . 1 . Spaces Dug 4 | . 4 . . Terrain Destroyed 20 | . 17 . 3 Melee . | . . . . Projectile . | . . . . AOE 20 | . 17 . 3 Terrain Rammed . | . . . . Walls Destroyed . | . . . . Machines Disabled . | . . . . Actions | -11 -10 -10 -10 --------- Run | Yrd Mat Min Exi Total 2444 | 58 1037 447 902 Wait 285 | . 238 8 39 Move 1946 | 47 720 417 762 Hop . | . . . . Pick Up 39 | 3 17 1 18 Fast Attach 15 | 6 8 . 1 Attach 9 | . 2 1 6 Detach . | . . . . Swap 11 | 1 5 1 4 Drop 27 | 1 7 . 19 Fire 112 | . 40 19 53 Melee . | . . . . Ram . | . . . . Kick . | . . . . Crush . | . . . . Escape Stasis . | . . . . Rewire . | . . . . Trap . | . . . . Miscellaneous . | . . . . Route ------- -11/Scrapyard -10/Materials (discovered 4 exits: [*Mat x3] / *Min) -10/Mines (discovered 3 exits: [*Mat x2] / *Exi) -10/Exiles (discovered 2 exits: *Min x2) History --------- Turn | Location | Event 27 | -11/Scrapyard | Discovered new exit (range 15) 88 | -11/Scrapyard | Entered Materials 317 | -10/Materials | Build established: Mutant 448 | -10/Materials | Discovered new exit (range 16) 611 | -10/Materials | Central database locked down 624 | -10/Materials | Discovered new exit (range 16) 828 | -10/Materials | Repaired EM Pulse Gun 856 | -10/Materials | Repaired Lgt. Treads 883 | -10/Materials | Repaired Lgt. Treads 1095 | -10/Materials | Discovered new exit (range 10) 1495 | -10/Materials | Discovered new exit (range 3) 1869 | -10/Materials | Entered Mines 1912 | -10/Mines | Met a Derelict bent on vengeance 1951 | -10/Mines | Discovered new exit (range 5) 2290 | -10/Mines | Discovered new exit (range 11) 2569 | -10/Mines | Learned Materials emergency access door positions 2929 | -10/Mines | Deemed a non-threat by the Exiles lab entrance 2929 | -10/Mines | Discovered new exit (range 5) 2939 | -10/Mines | Entered Exiles 2940 | -10/Exiles | Identified exit to Mines 2999 | -10/Exiles | Met 8R-AWN 3038 | -10/Exiles | Met EX-HEX 3105 | -10/Exiles | Met EX-BIN 3131 | -10/Exiles | Aligned with FarCom system 3134 | -10/Exiles | Given EX-Vault access code 3199 | -10/Exiles | Opened EX-Vault 3218 | -10/Exiles | Found Chronowheel 3218 | -10/Exiles | Activated Chronowheel 3223 | -10/Exiles | Found AWS/Autocannon 3234 | -10/Exiles | Found Deploy-a-Sentry 3237 | -10/Exiles | Found Deploy-a-Sentry 3241 | -10/Exiles | Found Deploy-a-Sentry 3292 | -10/Exiles | Warned to stay clear of 0b10 Research branches 3354 | -10/Exiles | Met EX-DEC 3748 | -10/Exiles | Visited The Gauntlet 4428 | -10/Exiles | Attacked by the Exiles 4478 | -10/Exiles | DAS Turret deployed 4481 | -10/Exiles | DAS Turret deployed 4483 | -10/Exiles | DAS Turret deployed 4538 | -10/Exiles | Core integrity fell below 50% 4550 | -10/Exiles | Allies destroyed 8R-AWN 4749 | -10/Exiles | Core integrity fell below 20% 4965 | -10/Exiles | Destroyed EX-BIN 4975 | -10/Exiles | Destroyed by EX-DEC with AWS/EX-DEC Last Messages --------------- Machine disabled. Lgt. Treads destroyed. DAS Turret destroyed. Dropped Med. Matter Pod. Extracted 100 matter. Acquired 8 matter. Acquired 2 matter. Acquired 7 matter. Acquired 3 matter. Acquired 9 matter. EX-BIN: "I just want to science!" Machine disabled. Destroyed EX Chip 2. EX Chip 1 melted. EX-BIN: "You can't kill me, my evil twin will get revenge!" EX-BIN destroyed. Acquired 25 matter. Lgt. Treads destroyed. AM-PHS destroyed. Map ----- +----------------------------------------------------+ | ??????????????????????## | | ???????????????????????#" " | | ???????????????????????#"""" ""## # | | ???????????????????????#"" ""#### # | | ???????????????????????#" """"##??# # | | ???????????????????????#""" """#??## # | | ???????????????????????## ""##??#! | | ????????????????????????#"" """##???#" | | ????????????????????????##""" ##????#" | | ?????????????????????????##"""" ##?????#!!"" | | ??????????????????????????### #??????##### | | ????????????????????????????##### ##??????????? | | ????????????????????????????????## #???????????? | | ?????????????????????????????????# #???????????? | | ?????????????????????????????????# #???????????? | | ?????????????????????????????????# #???????????? | | ??#####?????????????????###??????# #???????????? | | #"""""""#?????"""""???#""""""????# #???????????? | | ?"" ""????"""""""????"""""""#??# #???????????? | | #" "#??"""""" "#??#" """"#??# #???????????? | | ?"" ""#""#""" """????"" """#??# #???????????? | | ?"" ""#""#"" ""????"" ""???# #???????????? | | ###"""###""###"""########"""###### ########????? | | "" """"""" """""""" """""" """""""#????? | | """""" """""%! "#"" "? | | !=@ " "? | | z =!! " "?? | | c " "?? | | "" "" #"" "? | | """ """""" " """"" " """" """""#????? | | ###"""########"""###""###"""########"""######????? | | ?"" ""????"" ""#""#"" ""?????? ""????????? | | ?""" """????""" ""#""#""" ""?????? """????????? | | #" """ "#??#" """"""""#" " "#?????"""""#???????? | | ?"""""""????"""""""????"""""""?????? """?????????? | | ?"""""""????""""""?????"""""""#?????"""??????????? | | ?????????????????????????##?#????????????????????? | | ?????????????????????????????????????????????????? | | ?????????????????????????????????????????????????? | | ?????????????????????????????????????????????????? | | ?????????????????????????????????????????????????? | | | | | | | | | | | | | | | | | | | +----------------------------------------------------+ Best States ------------- Heat Dissipation 25 Energy Generation 5 Energy Capacity 300 Matter Stores 340 Matter Capacity 450 Sight Range 16 Robot Scan Range 14 Terrain Scan Density 10 Evasion (%) 40 Recoil Reduction 2 Item Schematics ----------------- Huge Storage Unit | -10/Mines | Hacked Robot Schematics ------------------ None Fabricated ------------ Nothing Alien Tech Used ----------------- None Achievements -------------- None Challenges ------------ None Game ------ Seed LightSpacefoldClaymores Manual? 0 Play Time 00:20:52 Cumulative 282.2 hours Start 2024.07.11 @ 15:38:24 End 2024.07.11 @ 15:59:05 Sessions 1 Manual Loads 0 Difficulty Rogue Special Mode None Game No. 229 Rogue 229 Adventurer 0 Explorer 0 Win Type - Total 23 Types 17/1/2/1/1/0/0/1/0 Lore% 77 Gallery% 86 Achievement% 89 Wizard Run 0 Options --------- Layout 1 ASCII 0 Keyboard 0 Movement Numpad Keybinds 0 Fullscreen 1 Font 24/Smallcaps Map View 50x35 Zoom Use 0% Tactical HUD 1 Map Filters NONE Filters NONE Steam 1 RUN: e9685432-db84-4065-aa59-f9750b078a4b